bitfinex-derivatives/quotes_ETHF0:USTF0_20250621
["timestamp","ask_amount","ask_price","bid_price","bid_amount"]
[1750478254044,6.8204068,2427.1,2426.7,1.23609]
[1750478254045,1.236,2427.0,2426.7,1.23609]
[1750478254246,1.236,2427.0,2426.8,1.23606]
[1750478254444,1.236,2427.0,2426.7,1.93449]
[1750478254445,1.23596,2427.0,2426.7,1.93449]
[1750478254646,0.6851,2426.9,2426.7,1.93449]
[1750478255046,0.6851,2426.9,2426.8,1.23607]
[1750478263158,0.6851,2426.9,2426.7,0.6984]
[1750478263364,0.6851,2426.9,2426.7,1.93449]
[1750478264961,0.6851,2426.9,2426.8,1.23607]
[1750478266464,0.6851,2426.9,2426.7,1.93449]
[1750478268268,0.6851,2426.9,2426.8,1.23607]
[1750478270462,8.1793068,2427.1,2426.8,1.23607]
[1750478270463,6.8204068,2427.1,2426.8,1.23607]
[1750478270760,7.5274068,2427.1,2426.7,0.6984]
[1750478270961,7.5274068,2427.1,2426.8,1.23605]
[1750478272569,1.23597,2427.0,2426.8,1.23605]
[1750478272867,2.89978972,2427.0,2426.8,1.23605]
[1750478275077,1.66381972,2427.0,2426.9,1.23602]
[1750478275570,5.57861972,2427.1,2426.9,1.23602]
[1750478276369,6.81453972,2427.1,2426.9,1.23602]
[1750478277764,6.81453972,2427.1,2426.8,1.23603]
[1750478277970,1.23597,2427.0,2426.8,1.23603]
[1750478278867,1.23597,2427.0,2426.7,3.28508]
[1750478279171,1.23597,2427.0,2426.8,1.23606]
[1750478280372,1.23597,2427.0,2426.7,1.9345]
[1750478280670,1.66381972,2426.9,2426.7,1.9345]
[1750478281071,2.89983972,2426.9,2426.7,1.9345]
[1750478281374,1.66381972,2426.9,2426.7,1.9345]
[1750478281874,0.6761,2426.8,2426.7,1.9345]
[1750478285374,1.66381972,2426.9,2426.8,1.23607]
[1750478285571,3.63451972,2427.0,2426.8,1.23607]
[1750478290880,3.63451972,2427.0,2426.9,1.23602]
[1750478291179,3.63451972,2427.0,2426.8,1.23604]
[1750478291880,4.87161972,2427.1,2426.7,2.36221972]
[1750478292077,3.2078,2427.1,2427.0,1.23597]
[1750478293283,3.2078,2427.1,2426.9,1.23598]
[1750478296591,4.44372,2427.1,2426.9,1.23598]
[1750478296792,3.2078,2427.1,2426.9,1.23598]
[1750478296982,3.2078,2427.1,2427.0,1.23597]
[1750478297490,3.2078,2427.1,2426.9,1.23598]
[1750478299093,3.55321972,2427.2,2426.9,1.23598]
[1750478299291,4.93891972,2427.2,2426.9,1.23598]
[1750478299490,3.2078,2427.1,2426.9,1.23598]
[1750478299895,4.44372,2427.1,2426.9,1.23598]
[1750478300390,5.73652,2427.1,2426.9,1.23598]
[1750478300691,4.5006,2427.1,2426.9,1.23598]
[1750478302293,4.5006,2427.1,2427.0,1.23597]
[1750478302495,4.5006,2427.1,2426.9,1.23599]
[1750478304699,4.5006,2427.1,2427.0,1.23597]
[1750478304896,3.2078,2427.1,2427.0,1.23597]
[1750478305993,3.2078,2427.1,2427.0,1.93837]
[1750478309903,2.31731972,2427.2,2427.0,1.93837]
[1750478310103,5.52511972,2427.2,2427.0,1.93837]
[1750478311902,5.52511972,2427.2,2426.6,4.09404408]
[1750478312105,1.66381972,2427.0,2426.9,1.236]
[1750478312701,1.66381972,2427.1,2426.9,1.236]
[1750478313704,1.66381972,2427.1,2427.0,1.23597]
[1750478314604,4.87161972,2427.1,2427.0,1.23597]
[1750478317509,4.87161972,2427.1,2426.9,1.23598]
[1750478320010,4.87161972,2427.1,2427.0,1.23596]
[1750478321611,29.76461972,2427.1,2427.0,1.23596]
[1750478322510,29.76461972,2427.1,2426.9,1.23598]
[1750478324513,29.76461972,2427.1,2427.0,1.23596]
[1750478324715,29.76461972,2427.1,2426.7,1.90668]
[1750478324914,4.87161972,2426.8,2426.7,1.90668]
[1750478335420,4.87161972,2426.8,2426.7,0.6706]
[1750478335617,4.87161972,2426.8,2426.6,1.94645]
[1750478339324,6.10768972,2426.8,2426.6,0.7103]
[1750478339918,4.87161972,2426.8,2426.5,0.3305486]
[1750478340117,4.87161972,2426.8,2426.4,0.6705]
[1750478340118,1.66381972,2426.6,2426.4,1.90675]
[1750478340621,0.6882,2426.5,2426.4,1.90675]
[1750478341119,0.6882,2426.5,2426.4,2.44252705]
[1750478341625,0.6882,2426.5,2426.4,1.20627705]
[1750478343424,0.6882,2426.5,2426.4,2.44254705]
[1750478344129,0.6882,2426.5,2426.4,1.20627705]
[1750478344517,0.6882,2426.5,2426.0,4.09404408]
[1750478344518,5.13222,2426.5,2426.0,4.09404408]
[1750478344719,1.66381972,2426.2,2426.1,1.23639]
[1750478344921,4.87161972,2426.2,2426.1,1.23639]
[1750478345522,3.2078,2426.2,2426.1,1.23639]
[1750478346024,3.896,2426.5,2426.3,1.23629]
[1750478346225,3.896,2426.5,2426.4,0.6725]
[1750478351635,1.66381972,2426.6,2426.4,1.90877]
[1750478351836,2.31671972,2426.6,2426.4,1.90877]
[1750478352135,3.2078,2426.8,2426.6,1.23614]
[1750478352327,5.52451972,2426.8,2426.6,1.23614]
[1750478352530,3.8607,2426.8,2426.7,1.23612]
[1750478352833,3.2078,2426.8,2426.7,2.89993972]
[1750478353035,3.2078,2426.8,2426.4,13.99271]
[1750478353036,4.87161972,2426.8,2426.4,5.43934408]
[1750478353331,4.87161972,2426.5,2426.4,0.6728]
[1750478354138,6.10783972,2426.5,2426.4,0.6728]
[1750478354636,6.10783972,2426.5,2426.0,6.349]
[1750478354637,1.23637,2426.2,2426.0,6.349]
[1750478354842,3.2078,2426.1,2426.0,6.349]
[1750478355137,4.44422,2426.1,2426.0,6.349]
[1750478355331,3.2078,2426.1,2426.0,6.349]
[1750478355836,3.8624,2426.1,2426.0,6.349]
[1750478356533,6.24092517,2426.1,2425.9,0.54206917]
[1750478356739,3.8624,2426.1,2425.9,1.23652]
[1750478359129,3.8624,2426.1,2425.9,1.30499599]
[1750478359744,0.6546,2426.1,2425.9,1.30499599]
[1750478360136,0.6546,2426.1,2425.9,1.23652]
[1750478361046,0.6546,2426.1,2425.9,1.77382867]
[1750478361345,1.89103,2426.1,2425.8,1.94204]
[1750478362348,5.09883,2426.1,2425.8,1.94204]
[1750478363445,5.09883,2426.1,2425.8,2.47739777]
[1750478363953,3.8624,2426.1,2425.8,2.47739777]
[1750478364656,5.09883,2426.1,2425.8,2.47739777]
[1750478365154,5.09883,2426.1,2426.0,0.06847599]
[1750478366257,3.8624,2426.1,2426.0,0.06847599]
[1750478366856,5.09882,2426.1,2426.0,0.06847599]
[1750478367048,3.8624,2426.1,2425.8,2.47739777]
[1750478367248,3.8624,2426.1,2425.9,1.23652]
[1750478369053,5.09884,2426.1,2425.8,2.47741777]
[1750478372454,5.09884,2426.1,2425.9,1.23652]
[1750478372853,3.8624,2426.1,2425.9,1.23652]
[1750478373950,3.8624,2426.1,2426.0,1.23647]
[1750478374960,3.8624,2426.1,2425.9,1.23649]
[1750478376460,5.09883,2426.1,2425.8,2.47740777]
[1750478377057,7.47735517,2426.1,2425.8,1.77190777]
[1750478377356,1.3525,2426.0,2425.8,1.77190777]
[1750478378154,3.73102517,2426.0,2425.8,0.53535777]
[1750478378356,3.73102517,2426.0,2425.7,1.23662]
[1750478378765,1.3525,2426.0,2425.7,1.73331919]
[1750478379157,2.58898,2426.0,2425.7,1.73331919]
[1750478380258,2.58898,2426.0,2425.7,0.49669919]
[1750478380559,1.3619,2425.9,2425.7,1.23662]
[1750478380953,0.6732,2425.8,2425.7,1.23662]
[1750478382659,0.6732,2425.8,2425.7,1.72738874]
[1750478384661,3.2078,2426.1,2425.8,1.23653]
[1750478384860,3.2078,2426.1,2425.8,1.90243]
[1750478386763,8.29218,2426.2,2425.9,1.23652]
[1750478386965,3.2078,2426.1,2425.9,1.23652]
[1750478387667,3.2078,2426.1,2425.8,1.90244]
[1750478387859,3.2078,2426.1,2425.9,1.23652]
[1750478389269,3.2078,2426.1,2425.8,1.90244]
[1750478389459,4.44423,2426.1,2425.8,1.90244]
[1750478389765,3.2078,2426.1,2425.8,1.90244]
[1750478390165,4.44423,2426.1,2425.8,1.90244]
[1750478390466,6.82275517,2426.1,2425.8,1.90247]
[1750478390665,8.15065517,2426.1,2425.8,1.90247]
[1750478390863,8.15065517,2426.1,2425.8,0.6659]
[1750478391764,8.15065517,2426.1,2425.8,1.90247]
[1750478392655,6.91422517,2426.1,2425.8,0.6659]
[1750478392963,2.37852517,2425.9,2425.8,1.23658]
[1750478393463,2.37852517,2425.9,2425.8,1.30505599]
[1750478393665,3.05332517,2425.9,2425.8,1.30505599]
[1750478397971,0.6748,2425.9,2425.8,1.30505599]
[1750478402470,4.28984517,2425.9,2425.8,0.06847599]
[1750478402662,3.05332517,2425.9,2425.8,0.06847599]
[1750478402863,3.05332517,2425.9,2425.8,1.30505599]
[1750478403166,3.2078,2426.1,2425.9,1.23649]
[1750478403363,3.2078,2426.1,2426.0,1.23647]
[1750478404777,3.2078,2426.1,2425.9,1.89759]
[1750478405473,3.2078,2426.1,2426.0,1.23647]
[1750478407773,3.2078,2426.1,2425.9,1.89759]
[1750478408672,3.2078,2426.1,2426.0,1.23647]
[1750478408871,2.37852517,2426.2,2426.0,1.23647]
[1750478409478,2.37852517,2426.2,2426.1,1.23642]
[1750478409672,2.37852517,2426.2,2426.0,1.23644]
[1750478409870,7.50993517,2426.4,2426.0,1.23644]
[1750478410070,7.50993517,2426.4,2426.1,1.92392]
[1750478410271,6.27362517,2426.4,2426.1,1.92392]
[1750478410877,6.27362517,2426.4,2426.2,1.23636]
[1750478411681,7.50989517,2426.4,2426.2,1.23636]
[1750478413878,6.27362517,2426.4,2426.2,1.23636]
[1750478414178,4.44377,2427.0,2426.3,3.09081]
[1750478414483,3.07292517,2426.9,2426.7,1.23611]
[1750478414675,4.39862517,2426.9,2426.7,1.23611]
[1750478415170,4.39862517,2426.9,2426.4,3.2078]
[1750478415372,2.37852517,2426.7,2426.5,7.61818]
[1750478415775,0.6944,2426.6,2426.5,7.61818]
[1750478420981,0.6944,2426.6,2426.5,7.68665599]
[1750478423584,3.2078,2427.0,2426.9,1.23601]
[1750478424287,3.9057,2427.0,2426.9,1.23601]
[1750478426780,2.37852517,2427.5,2426.9,13.20333517]
[1750478426976,0.6864,2427.4,2427.3,1.23581]
[1750478427681,0.6864,2427.4,2427.2,1.23583]
[1750478427889,2.37852517,2427.3,2427.2,1.23583]
[1750478430978,1.23588,2427.2,2426.9,1.23599]
[1750478431184,2.37852517,2427.0,2426.9,1.23599]
[1750478431984,3.68552517,2427.0,2426.9,1.23599]
[1750478434398,1.307,2427.0,2426.9,1.23599]
[1750478434595,0.6714,2427.1,2427.0,1.23596]
[1750478436594,1.9655,2427.1,2427.0,1.23596]
[1750478437499,1.9655,2427.1,2426.9,0.06847599]
[1750478437799,3.71272517,2427.0,2426.9,0.06847599]
[1750478438200,3.71272517,2427.0,2426.9,1.30448599]
[1750478438695,3.71272517,2427.0,2426.9,0.06847599]
[1750478438901,3.71272517,2427.0,2426.9,1.30448599]
[1750478439199,3.71272517,2427.0,2426.9,0.06847599]
[1750478442002,4.94868517,2427.0,2426.9,0.06847599]
[1750478442210,1.23606,2426.9,2426.5,4.44399]
[1750478442508,2.37852517,2426.7,2426.5,4.44399]
[1750478442710,2.37852517,2426.7,2426.5,3.2078]
[1750478443008,0.6908,2426.6,2426.5,4.44402]
[1750478446210,0.6908,2426.6,2426.4,8.30265]
[1750478446404,1.92698,2426.6,2426.4,8.30265]
[1750478446910,0.6908,2426.6,2426.5,1.23622]
[1750478448010,0.6908,2426.6,2426.4,1.88963]
[1750478449411,1.92697,2426.6,2426.4,1.88963]
[1750478449613,0.6908,2426.6,2426.5,1.23622]
[1750478450515,0.6908,2426.6,2426.4,1.88963]
[1750478452016,0.6908,2426.6,2426.5,1.23622]
[1750478452312,1.88689,2426.8,2426.5,1.23622]
[1750478452506,1.88769,2426.8,2426.5,1.87892]
[1750478452815,1.23612,2426.7,2426.5,1.87892]
[1750478453708,2.37852517,2426.7,2426.5,0.6427]
[1750478453908,1.23617,2426.6,2426.4,1.88963]
[1750478454315,0.6403,2426.5,2426.4,1.88963]
[1750478454620,3.01882517,2426.5,2426.3,6.413]
[1750478455017,3.01882517,2426.5,2426.4,1.23627]
[1750478458921,0.6403,2426.5,2426.4,1.23627]
[1750478462926,3.79112517,2426.7,2426.5,1.23618]
[1750478463123,4.50102517,2426.7,2426.5,1.23618]
[1750478463727,0.7099,2426.7,2426.6,1.23617]
[1750478471829,1.94602,2426.7,2426.6,1.23617]
[1750478473031,0.7099,2426.7,2426.6,1.23617]
[1750478473631,3.61456517,2426.9,2426.7,1.23612]
[1750478473826,1.19445982,2426.8,2426.7,1.23612]
[1750478474033,4.31306517,2426.9,2426.7,1.23612]
[1750478474934,1.19450851,2426.8,2426.7,1.23612]
[1750478477332,1.19469936,2426.8,2426.7,1.23612]
[1750478479729,4.31306517,2426.9,2426.7,1.23612]
[1750478481037,4.31306517,2426.9,2426.6,0.6503]
[1750478481038,4.31306517,2426.9,2426.6,1.88643]
[1750478481336,4.31306517,2426.9,2426.7,1.23611]
[1750478481535,4.31306517,2426.9,2426.6,1.88643]
[1750478481839,3.07702517,2426.9,2426.7,1.23611]
[1750478482537,4.31304517,2426.9,2426.7,1.23611]
[1750478483336,3.07702517,2426.9,2426.7,1.23611]
[1750478484034,3.07702517,2426.9,2426.7,1.30458599]
[1750478484931,3.07702517,2426.9,2426.7,1.23611]
[1750478487142,3.07702517,2426.9,2426.8,1.23607]
[1750478487342,4.27087604,2426.9,2426.8,1.23607]
[1750478488641,4.27087604,2426.9,2426.7,1.23608]
[1750478488843,3.07702517,2426.9,2426.7,1.23608]
[1750478491133,3.07702517,2426.9,2426.8,1.23607]
[1750478491337,4.27315261,2426.9,2426.7,1.23607]
[1750478491537,3.07702517,2426.9,2426.7,1.23607]
[1750478492749,3.07702517,2426.9,2426.6,0.71877599]
[1750478492942,3.07702517,2426.9,2426.7,1.23609]
[1750478493248,4.31304517,2426.9,2426.7,1.23609]
[1750478494048,4.31304517,2426.9,2426.7,1.30456599]
[1750478494450,3.07702517,2426.9,2426.7,1.30456599]
[1750478495049,4.31304517,2426.9,2426.7,1.23609]
[1750478498151,4.31304517,2426.9,2426.7,1.30456599]
[1750478499052,1.66415778,2426.8,2426.7,1.30456599]
[1750478499249,1.66415778,2426.8,2426.7,1.23609]
[1750478501849,1.66415778,2426.8,2426.6,1.88643]
[1750478502054,1.66415778,2426.8,2426.7,1.23612]
[1750478502351,1.66415778,2426.8,2426.7,1.30459599]
[1750478502552,25.6095,2426.9,2426.8,1.23607]
[1750478502752,1.89458071,2426.9,2426.8,1.23607]
[1750478503056,1.19608071,2426.9,2426.8,0.6643]
[1750478504353,2.86023849,2426.9,2426.7,0.06847599]
[1750478504555,2.53708071,2426.8,2426.7,0.06847599]
[1750478504756,4.47095071,2426.8,2426.7,0.06847599]
[1750478505254,4.47095071,2426.8,2426.5,4.444]
[1750478505447,1.66415778,2426.6,2426.5,4.44402]
[1750478509452,2.37185778,2426.7,2426.6,1.23617]
[1750478509958,1.66415778,2426.7,2426.6,1.23617]
[1750478510958,26.82711,2426.9,2426.6,1.23617]
[1750478510959,29.2045739,2426.9,2426.6,1.23617]
[1750478511161,1.19637603,2426.8,2426.6,1.23617]
[1750478511360,29.2045739,2426.9,2426.7,1.23612]
[1750478511661,1.19637489,2426.8,2426.7,1.23612]
[1750478513967,27.9685639,2426.9,2426.8,1.23607]
[1750478514168,29.16523948,2426.9,2426.8,1.23607]
[1750478515671,29.16523948,2426.9,2426.7,1.23608]
[1750478515871,1.19667558,2426.8,2426.7,1.23608]
[1750478517173,27.9685639,2426.9,2426.7,1.23608]
[1750478517669,1.19670768,2426.8,2426.7,1.23608]
[1750478517876,29.2045839,2426.9,2426.7,1.23608]
[1750478518172,1.19735115,2426.8,2426.7,1.23608]
[1750478523474,26.10735115,2426.8,2426.7,1.23608]
[1750478524979,24.91,2426.8,2426.7,1.23608]
[1750478525278,26.10742353,2426.8,2426.7,1.23608]
[1750478525579,24.91,2426.8,2426.7,1.30455599]
[1750478525972,1.19737783,2426.8,2426.7,1.30455599]
[1750478526177,24.91,2426.8,2426.7,1.30455599]
[1750478526582,24.91,2426.8,2426.7,1.23608]
[1750478527580,24.91,2426.8,2426.7,1.30455599]
[1750478529383,3.0575639,2426.9,2426.7,1.30455599]
[1750478529384,0.6801,2426.9,2426.8,1.23607]
[1750478529582,25.5891,2426.9,2426.8,1.23607]
[1750478529881,25.5891,2426.9,2426.8,1.90507]
[1750478530179,0.6801,2426.9,2426.8,1.90507]
[1750478531977,3.2078,2427.0,2426.9,1.23601]
[1750478532177,28.1168,2427.0,2426.9,1.90801]
[1750478533484,3.2078,2427.0,2426.9,1.23601]
[1750478534279,3.2078,2427.0,2426.9,2.56431]
[1750478536084,0.6417,2427.2,2427.1,1.23591]
[1750478537087,4.87161689,2427.3,2427.2,1.23586]
[1750478537286,6.75123548,2427.3,2427.2,1.23586]
[1750478537879,5.55581689,2427.3,2427.2,1.66527408]
[1750478538079,6.75110469,2427.3,2427.2,1.66527408]
[1750478538587,5.55581689,2427.3,2427.2,1.66527408]
[1750478543890,0.6842,2427.3,2427.2,3.32909097]
[1750478544080,0.6842,2427.3,2427.2,1.66527408]
[1750478547288,2.34801689,2427.3,2427.2,1.23586]
[1750478552191,3.58386689,2427.3,2427.1,0.06847599]
[1750478552390,1.4052,2427.2,2427.1,0.06847599]
[1750478552691,2.64106,2427.2,2427.1,0.06847599]
[1750478553496,1.4052,2427.2,2427.1,1.30438599]
[1750478554097,1.4052,2427.2,2427.1,1.23591]
[1750478554899,2.64107,2427.2,2427.0,1.67503901]
[1750478555091,1.66381689,2427.1,2427.0,1.23593]
[1750478557695,1.66381689,2427.1,2426.9,6.359]
[1750478557897,1.9836,2427.0,2426.9,6.76961397]
[1750478558200,1.9836,2427.0,2426.9,7.595]
[1750478558791,0.6433,2427.0,2426.9,7.595]
[1750478569208,0.6433,2427.0,2426.9,7.66347599]
[1750478572909,3.2078,2427.2,2427.1,1.23591]
[1750478573112,2.89964689,2427.3,2427.1,1.23591]
[1750478573313,3.2078,2427.2,2427.0,1.23594]
[1750478573612,1.66381689,2427.1,2427.0,1.23594]
[1750478573919,2.33001689,2427.1,2427.0,1.23594]
[1750478574412,3.56592689,2427.1,2427.0,1.23594]
[1750478574613,2.33001689,2427.1,2427.0,1.23594]
[1750478575615,3.56592689,2427.1,2427.0,1.23594]
[1750478575816,4.90442689,2427.1,2427.0,1.23594]
[1750478576713,4.90442689,2427.1,2426.9,1.23598]
[1750478578624,4.90442689,2427.1,2426.9,1.30445599]
[1750478579424,4.90442689,2427.1,2426.9,1.23598]
[1750478580424,4.90442689,2427.1,2426.9,1.30445599]
[1750478581528,4.90442689,2427.1,2426.9,1.23598]
[1750478583021,1.23596,2427.0,2426.8,2.60793]
[1750478583217,4.90446689,2427.1,2426.8,2.60793]
[1750478583425,4.90446689,2427.1,2426.9,1.23601]
[1750478584220,3.66851689,2427.1,2426.9,1.23601]
[1750478584935,3.66851689,2427.1,2426.6,3.2078]
[1750478585125,1.66381689,2426.7,2426.6,1.23617]
[1750478585517,2.31541689,2426.7,2426.6,1.23617]
[1750478590037,0.6516,2426.7,2426.6,1.23617]
[1750478593137,0.6516,2426.7,2426.5,1.23619]
[1750478593340,0.6516,2426.7,2426.4,8.66201689]
[1750478594433,0.6516,2426.7,2426.6,1.23617]
[1750478599944,0.6516,2426.7,2426.6,1.30464599]
[1750478600246,0.6516,2426.7,2426.6,0.06847599]
[1750478600440,1.88772,2426.7,2426.6,0.06847599]
[1750478600639,0.6516,2426.7,2426.6,1.30464599]
[1750478601343,0.6516,2426.7,2426.6,0.06847599]
[1750478601344,1.88772,2426.7,2426.6,0.06847599]
[1750478601545,3.28632,2426.7,2426.6,0.06847599]
[1750478601746,1.23618,2426.6,2426.4,8.23445]
[1750478602042,1.66381689,2426.6,2426.3,1.23629]
[1750478602347,2.90011689,2426.4,2426.3,1.23632]
[1750478602544,2.90011689,2426.4,2426.2,1.65146389]
[1750478602747,0.6667,2426.3,2426.2,1.65146389]
[1750478605348,4.29866689,2426.5,2426.3,1.23627]
[1750478605648,5.00916689,2426.5,2426.3,1.90087]
[1750478607552,1.23627,2426.4,2426.3,1.90087]
[1750478608553,1.23627,2426.4,2426.3,0.6646]
[1750478610850,1.23632,2426.3,2426.2,0.41512389]
[1750478611047,1.23632,2426.3,2426.0,0.6475]
[1750478611048,4.87161689,2426.3,2426.0,0.6475]
[1750478611246,2.90023689,2426.1,2426.0,0.6475]
[1750478612459,1.23642,2426.1,2426.0,0.6475]
[1750478614360,1.23652,2425.9,2425.8,0.6552]
[1750478614951,1.23652,2425.9,2425.8,1.89177]
[1750478615155,1.23652,2425.9,2425.8,0.6552]
[1750478615557,1.23652,2425.9,2425.8,1.89177]
[1750478615757,1.2365,2426.0,2425.8,1.89177]
[1750478616261,1.23645,2426.1,2425.9,1.23652]
[1750478616655,1.23642,2426.1,2426.0,1.23647]
[1750478616857,4.44414,2426.3,2426.1,1.23642]
[1750478617057,4.44414,2426.3,2426.2,0.6692]
[1750478617557,1.23634,2426.3,2426.2,0.6692]
[1750478618955,4.44414,2426.3,2426.2,0.6692]
[1750478619465,1.23637,2426.2,2426.1,0.06847599]
[1750478623062,1.23637,2426.2,2426.0,1.23645]
[1750478623255,0.7076,2426.1,2426.0,1.23645]
[1750478624361,1.23654,2425.9,2425.7,1.92423]
[1750478624560,3.8904,2425.8,2425.7,1.92423]
[1750478627058,3.8904,2425.8,2425.7,0.6876]
[1750478627269,5.12697,2425.8,2425.7,0.6876]
[1750478627566,6.31701349,2425.8,2425.5,1.89291]
[1750478627866,5.12697,2425.8,2425.5,1.89291]
[1750478628073,5.12697,2425.8,2425.6,1.23667]
[1750478629165,5.12697,2425.8,2425.7,0.06847599]
[1750478629372,6.31675007,2425.8,2425.7,0.06847599]
[1750478632460,6.31675007,2425.8,2418.9,26.20188216]
[1750478632461,43.71593833,2425.8,2424.8,1.23705]
[1750478632670,3.2078,2424.9,2424.7,1.2371]
[1750478632864,3.2078,2424.9,2424.7,1.23714]
[1750478633060,3.2078,2424.9,2424.8,1.23708]
[1750478633268,3.2078,2425.3,2424.8,8.2078]
[1750478633563,3.2078,2425.3,2425.2,3.61563826]
[1750478634268,3.2078,2425.3,2425.2,3.26168]
[1750478635066,3.2078,2425.6,2425.3,1.23681]
[1750478635269,4.44451,2425.6,2425.3,0.6931]
[1750478635568,5.13831,2425.6,2425.3,1.92992]
[1750478636168,3.9016,2425.6,2425.3,1.92992]
[1750478636369,3.9016,2425.6,2425.4,1.23677]
[1750478637172,3.9016,2425.6,2425.5,1.23673]
[1750478638170,3.9016,2425.6,2425.4,1.23675]
[1750478638569,3.9016,2425.6,2425.5,1.23673]
[1750478638965,3.9016,2425.6,2425.4,1.23675]
[1750478639966,3.9016,2425.6,2425.5,1.23673]
[1750478641064,5.13828,2425.6,2425.4,1.23675]
[1750478641467,3.9016,2425.6,2425.4,1.23675]
[1750478641770,5.13828,2425.6,2425.4,1.23675]
[1750478642274,5.13828,2425.6,2425.3,2.0463]
[1750478642275,7.51703826,2425.6,2425.3,3.28311]
[1750478642773,3.2078,2425.6,2425.5,1.23673]
[1750478643769,1.2366,2425.8,2425.5,1.23673]
[1750478644369,3.61535826,2425.8,2425.5,1.30520599]
[1750478644574,3.61543826,2425.6,2425.5,0.06847599]
[1750478644873,2.37875826,2425.6,2425.5,0.06847599]
[1750478645076,6.82321826,2425.7,2425.5,1.30516599]
[1750478645474,5.58655826,2425.7,2425.6,1.23668]
[1750478648372,6.82318826,2425.7,2425.6,1.23668]
[1750478648674,6.82318826,2425.7,2425.5,1.30517599]
[1750478648974,6.82318826,2425.7,2425.5,0.06847599]
[1750478649172,6.82318826,2425.7,2425.5,1.30515599]
[1750478649675,6.82318826,2425.7,2425.6,1.23668]
[1750478650079,6.82318826,2425.7,2425.5,1.30516599]
[1750478650476,1.23668,2425.6,2425.5,0.06847599]
[1750478650671,2.52518,2425.6,2425.5,0.06847599]
[1750478653982,2.52518,2425.6,2425.5,1.30520599]
[1750478654182,2.52518,2425.6,2425.5,0.06847599]
[1750478654684,3.18638,2425.6,2425.5,0.06847599]
[1750478654883,3.18638,2425.6,2425.5,1.30520599]
[1750478655877,1.9497,2425.6,2425.5,1.30520599]
[1750478656076,3.18638,2425.6,2425.5,0.06847599]
[1750478656788,4.3639871,2425.6,2425.5,0.06847599]
[1750478657087,3.18638,2425.6,2425.5,0.06847599]
[1750478657589,4.36398561,2425.6,2425.5,0.06847599]
[1750478658190,5.06928561,2425.6,2425.5,0.06847599]
[1750478658982,2.54410561,2425.6,2425.5,1.30520599]
[1750478659293,3.11954448,2425.6,2425.5,0.06847599]
[1750478659789,1.88286448,2425.6,2425.5,1.30520599]
[1750478659990,3.11954448,2425.6,2425.5,0.06847599]
[1750478660192,5.49830274,2425.6,2425.5,0.06847599]
[1750478660596,6.82810274,2425.6,2425.5,0.06847599]
[1750478665995,6.82870955,2425.6,2425.5,0.06847599]
[1750478666699,10.03650955,2425.6,2425.5,0.06847599]
[1750478668195,5.09127129,2425.6,2425.5,1.30520599]
[1750478668392,30.04327129,2425.6,2425.5,1.30520599]
[1750478668899,5.09127129,2425.6,2425.5,1.30520599]
[1750478669201,4.38597129,2425.6,2425.5,1.30520599]
[1750478669701,3.2078,2425.6,2425.5,1.30520599]
[1750478670394,1.90915,2425.7,2425.5,2.01480599]
[1750478674600,0.6725,2425.7,2425.6,1.23668]
[1750478674802,1.85107447,2425.7,2425.6,1.23668]
[1750478676000,0.6725,2425.7,2425.6,1.23668]
[1750478682515,2.0604,2426.0,2425.6,2.37875826]
[1750478682516,1.23648,2426.0,2425.6,2.37875826]
[1750478682712,26.13510648,2425.9,2425.8,1.23657]
[1750478683516,26.13310648,2425.9,2425.8,1.23657]
[1750478684003,0.6808,2426.1,2426.0,1.23647]
[1750478684208,1.17800936,2426.1,2426.0,1.23647]
[1750478684414,28.1728,2426.2,2426.1,1.23642]
[1750478685209,3.2078,2426.2,2426.1,1.23642]
[1750478687314,3.61507826,2426.3,2426.1,1.23642]
[1750478687611,28.57807826,2426.3,2426.1,1.23642]
[1750478687816,28.57807826,2426.3,2425.9,2.0923]
[1750478688214,2.37875826,2426.3,2425.9,2.0923]
[1750478688514,27.33875826,2426.3,2425.9,2.0923]
[1750478688707,27.33875826,2426.3,2426.0,1.3388]
[1750478688909,27.33875826,2426.3,2426.2,1.23637]
[1750478689515,28.57507826,2426.3,2426.2,1.23637]
[1750478690117,27.33875826,2426.3,2426.2,1.23637]
[1750478690309,27.33575826,2426.3,2426.2,1.23637]
[1750478690618,27.33575826,2426.3,2426.2,1.63032276]
[1750478691315,28.57207826,2426.3,2426.2,1.63032276]
[1750478691620,27.33575826,2426.3,2426.2,1.63032276]
[1750478691915,27.33575826,2426.3,2426.2,1.23637]
[1750478692516,2.37875826,2426.3,2426.2,1.23637]
[1750478692714,27.33475826,2426.3,2426.2,1.23637]
[1750478693715,28.57107826,2426.3,2426.2,1.23637]
[1750478694717,27.33475826,2426.3,2426.2,1.23637]
[1750478694919,27.33475826,2426.3,2426.2,1.61875368]
[1750478695820,2.37875826,2426.3,2426.2,1.61875368]
[1750478696005,24.947,2426.3,2426.2,1.61875368]
[1750478696212,0.6808,2426.4,2426.3,1.23632]
[1750478696518,25.6258,2426.4,2426.3,1.23632]
[1750478696716,25.6248,2426.4,2426.3,1.23632]
[1750478697324,26.86107,2426.4,2426.3,1.23632]
[1750478697616,25.6248,2426.4,2426.3,1.23632]
[1750478697820,26.86107,2426.4,2426.3,1.23632]
[1750478698709,26.86107,2426.4,2426.2,2.31704368]
[1750478698920,3.2078,2426.8,2426.3,2.37875826]
[1750478699217,3.61487826,2426.7,2426.4,4.44403]
[1750478699515,4.93187826,2426.7,2426.4,4.44403]
[1750478699707,3.69575826,2426.7,2426.6,1.23617]
[1750478700911,1.317,2426.7,2426.6,1.23617]
[1750478701122,4.5828,2426.8,2426.7,1.23612]
[1750478703722,7.17987,2426.8,2426.6,1.23614]
[1750478704921,1.23612,2426.7,2426.5,1.93567]
[1750478705219,7.1799,2426.8,2426.6,1.30464599]
[1750478705421,1.3125,2426.7,2426.6,1.30464599]
[1750478706822,3.69125826,2426.7,2426.6,1.30464599]
[1750478713526,1.23625,2426.5,2426.3,1.23628]
[1750478713726,0.6396,2426.4,2426.1,6.384]
[1750478714422,0.6396,2426.4,2426.3,1.23632]